Cogmind - Beta 13 @@@ ROGUE MODE // 2024.05.27 @ 22:49:22 Player: Heliostats Result: Destroyed by OX-XE7(R) with Subdweller Laser Performance ------------- Evolutions (0) 0 Regions Visited (2) 400 Robots Destroyed (27) 135 Value Destroyed (714) 714 Prototype IDs (2) 40 Alien Tech Used (0) 0 Bonus (0) 0 TOTAL SCORE: 1289 Bonus ------- None Cogmind --------- Core Integrity 0/250 Matter 237/300 Energy 349/350 System Corruption 0% Temperature Cool (6) Movement Core (150) Ox2 Location -10/Subcaves Parts ------- > --- POWER (1) -------- (None) > --- PROPULSION (2) --- (None) > --- UTILITY (2) ------ High-capacity Battery Signal Interpreter > --- WEAPON (2) ------- Barrage Gun Mining Claw > --- INVENTORY (5) ---- Hacking Suite Makeshift Hacking Suite Grenade Launcher Peak State ------------ > --- POWER ------------ Subdweller Power Source > --- PROPULSION ------- Subdweller Monowheel Subdweller Monowheel > --- UTILITY ---------- Subdweller Optics Signal Interpreter > --- WEAPON ----------- Particle Gun Barrage Gun > --- INVENTORY -------- High-capacity Battery Hacking Suite Makeshift Hacking Suite Grenade Launcher Mining Claw [Rating: 15] Favorites ----------- Power Light Ion Engine Engine Light Ion Engine Propulsion Improved Hover Unit Treads Light Treads Wheel Subdweller Monowheel Hover Unit Improved Hover Unit Flight Unit Flight Unit Utility Signal Interpreter Device Subdweller Optics Storage Small Storage Unit Processor Signal Interpreter Protection Light Armor Plating Weapon Light Assault Rifle Energy Gun Particle Gun Energy Cannon Beam Cannon Ballistic Gun Light Assault Rifle Ballistic Cannon Battle Cannon Launcher Grenade Launcher Slashing Weapon Mining Claw Build | -11 -10 -10 ------- Run | Yrd Mat Sub Slots Evolved . | . . . Power . | . . . Propulsion . | . . . Utility . | . . . Weapon . | . . . Parts Attached 42 | 7 16 19 Power 4 | 1 1 2 Engine 4 | 1 1 2 Core . | . . . Reactor . | . . . Propulsion 13 | 2 3 8 Treads 2 | 2 . . Leg . | . . . Wheel 6 | . . 6 Hover 4 | . 3 1 Flight 1 | . . 1 Utility 13 | 2 7 4 Device 4 | 1 2 1 Storage 4 | 1 1 2 Processor 1 | . 1 . Hackware . | . . . Protection 4 | . 3 1 Artifact . | . . . Weapon 12 | 2 5 5 Energy Gun 4 | . 2 2 Energy Cannon 1 | . 1 . Ballistic Gun 4 | 2 1 1 Ballistic Cannon 1 | . . 1 Launcher 1 | . 1 . Special Weapon . | . . . Impact Weapon . | . . . Slashing Weapon 1 | . . 1 Piercing Weapon . | . . . Special Melee Weapon . | . . . Unidentified Prototypes . | . . . Parts Lost 14 | . 4 10 Power 3 | . 1 2 Propulsion 5 | . . 5 Utility 2 | . 1 1 Weapon 4 | . 2 2 Highest Loss Streak 5 | . 2 5 To Critical Strikes . | . . . Average Slot Usage (%) 93 | . 95 91 Engine 11 | . 11 11 Treads 5 | . 11 . Wheel 8 | . . 16 Hover 12 | . 15 9 Device 6 | . 6 5 Storage 6 | . 11 1 Processor 10 | . 6 14 Protection 3 | . 3 3 Energy Gun 9 | . 6 11 Energy Cannon 1 | . 3 . Ballistic Gun 13 | . 14 13 Ballistic Cannon 1 | . . 2 Launcher 1 | . 2 . Naked Turns . | . . . Heaviest Build 16 | 11 14 16 Greatest Support 40 | 40 40 40 Greatest Overweight (x) 4 | . 4 3 Average Overweight (x) . | . . . Largest Inventory Capacity 8 | 8 8 8 Average Capacity 6 | 7 7 5 Most Carried 8 | 5 8 8 Average Carried 5 | 2 5 5 Final Capacity 8 | 8 8 5 Final Carried 8 | 2 8 3 Class Distribution -------------------- 71% | Mutant 28% | Scavenger-Mutant Dominant Class ---------------- Mutant | -10/Materials Scavenger-Mutant | -10/Subcaves Resources | -11 -10 -10 ----------- Run | Yrd Mat Sub Matter Collected 816 | 74 412 330 Remotely . | . . . Salvage Created 1023 | 30 568 425 Parts 63 | 5 30 28 Haulers Intercepted 2 | . 2 . Recyclers Shooed . | . . . Parts Field Recycled . | . . . Retrieved Matter . | . . . Parts Self-Destructed 10 | . . 10 Prevented . | . . . Kills | -11 -10 -10 ------- Run | Yrd Mat Sub Combat Hostiles Destroyed 19 | . 9 10 Guns 13 | . 6 7 Cannons 5 | . 2 3 AOE 1 | . 1 . Classes Destroyed 8 | 1 6 1 Tunneler 2 | 2 . . Hauler 2 | . 2 . Recycler 1 | . 1 . Operator 1 | . 1 . Watcher 2 | . 2 . Swarmer 4 | . 2 2 Grunt 10 | . 7 3 Subdweller 5 | . . 5 Best Kill Streak 4 | 1 3 4 Combat Bots Only 4 | . 2 4 Max Kills in Single Turn 2 | 1 2 1 Gunslinging . | . . . Exploded 1 | . 1 . Melee . | . . . Uniques/NPCs Destroyed . | . . . Combat | -11 -10 -10 -------- Run | Yrd Mat Sub Hostile Shots Fired 143 | . 68 75 Missed 43 | . 19 24 Damage Taken 1481 | . 606 875 Core 260 | . 81 179 Absorbed by Shields . | . . . Core Remaining (%) 100 | 100 . . Volleys Fired 111 | 9 50 52 Largest 2 | 2 2 2 Hottest 125 | 40 125 93 Shots Fired 199 | 18 86 95 Gun 171 | 18 72 81 Cannon 27 | . 13 14 Launcher 1 | . 1 . Special . | . . . Kinetic 146 | 18 62 66 Thermal 52 | . 23 29 Explosive 1 | . 1 . Electromagnetic . | . . . Robot Hit Streak 23 | 5 10 23 Robot Miss Streak 4 | 1 4 4 Penetration Max . | . . . Secondary Targets 1 | . 1 . Max Gunslinging Chain 1 | . 1 . Shots Hit Robots 153 | 14 60 79 Core Hits 56 | 3 26 27 Critical Kills . | . . . Critical Parts Destroyed 1 | . 1 . Critical Strikes 2 | . 1 1 Burn 1 | . . 1 Destroy 1 | . 1 . Melee Attacks . | . . . Impact . | . . . Slashing . | . . . Piercing . | . . . Sneak Attacks . | . . . Combat Hostiles . | . . . Follow-up Attacks . | . . . Damage Inflicted 2337 | 109 950 1278 Guns 1639 | 109 493 1037 Cannons 414 | . 173 241 Explosions 261 | . 261 . Melee . | . . . Ramming 23 | . 23 . Kinetic 1366 | 109 382 875 Thermal 948 | . 545 403 Explosive . | . . . Electromagnetic . | . . . Impact . | . . . Slashing . | . . . Piercing . | . . . Highest Corruption . | . . . Average Corruption . | . . . Corruption Purged . | . . . Corruption Blocked . | . . . Overload Shots . | . . . Overflow Damage 95 | . 95 . Projectiles . | . . . Explosions 95 | . 95 . Melee . | . . . Knockbacks 1 | . . 1 Impact . | . . . Kinetic 1 | . . 1 Secondary . | . . . Self-Inflicted Damage 98 | . 98 . Shots 1 | . 1 . Rammed 1 | . 1 . Targets Rammed 1 | . 1 . Kicked . | . . . Crushed . | . . . Highest Temperature 276 | . 276 47 Average Temperature 66 | . 91 14 Received Heat Transfer 408 | . 222 186 Siege Activations . | . . . Robots Corrupted . | . . . Combat Hostiles . | . . . Parts Fried . | . . . Impact Corruptions . | . . . Robots Melted . | . . . Combat Hostiles . | . . . Parts Melted 1 | . 1 . Heat Transferred 1730 | . 779 951 Parts Sabotaged . | . . . Parts Stolen . | . . . Parts Stripped . | . . . Power Chain Reactions . | . . . Alert | -11 -10 -10 ------- Run | Yrd Mat Sub Peak Influence 279 | 10 279 . Initial 6 | . 6 . Average 120 | 3 139 . Maximum Alert Level 1 | . 1 . Low Security (%) 80 | 100 76 . Level 1 19 | . 23 . Level 2 . | . . . Level 3 . | . . . Level 4 . | . . . Level 5 . | . . . High Security . | . . . Max Security . | . . . Squads Dispatched 1 | . 1 . Investigation . | . . . Extermination . | . . . Reinforcement 1 | . 1 . Assault . | . . . Garrison . | . . . Intercept . | . . . Searches Triggered . | . . . Construction Impeded . | . . . Haulers Reinforced . | . . . Active Scanning Responses . | . . . Cargo Convoy Interrupts . | . . . Stealth | -11 -10 -10 --------- Run | Yrd Mat Sub Distress Signals 1 | . 1 . Communications Jammed . | . . . Distress Signals . | . . . Times Spotted 34 | . 21 13 Peak Tracking Total 4 | . 3 4 Tactical Retreats 8 | . 5 3 Traps | -11 -10 -10 ------- Run | Yrd Mat Sub Traps Triggered . | . . . Indirectly . | . . . Trap Hack Attempts . | . . . Triggered . | . . . Disarmed . | . . . Reprogrammed . | . . . Reused . | . . . Traps Extracted . | . . . Installed . | . . . Triggered . | . . . Machines | -11 -10 -10 ---------- Run | Yrd Mat Sub Machines Disabled 2 | . 2 . Max in Single Turn 2 | . 2 . Machines Repaired . | . . . Machines Dismantled . | . . . Machines Sabotaged . | . . . Overloaded Fab Kills . | . . . Hacking | -11 -10 -10 --------- Run | Yrd Mat Sub Machines Accessed 8 | . 8 . Terminals 6 | . 6 . Fabricators . | . . . Repair Stations . | . . . Recycling Units 2 | . 2 . Scanalyzers . | . . . Garrison Access . | . . . Total Hacks 25 | . 25 . Successful 16 | . 16 . Failed 9 | . 9 . Catastrophic 1 | . 1 . Database Lockouts . | . . . Manual . | . . . Terminals 18 | . 18 . Fabricators . | . . . Repair Stations . | . . . Recycling Units 7 | . 7 . Scanalyzers . | . . . Garrison Access . | . . . Terminal Hacks 12 | . 12 . Prototype ID Bank 1 | . 1 . Level Access Points 1 | . 1 . Branch Access Points 1 | . 1 . Alert Level 2 | . 2 . Locate Traps 2 | . 2 . Patrol Status 1 | . 1 . Investigation Status 2 | . 2 . Hauler Manifests 1 | . 1 . Registered Prototypes 1 | . 1 . Fabricator Hacks . | . . . Repair Station Hacks . | . . . Recycling Unit Hacks 4 | . 4 . Report Inventory 2 | . 2 . Retrieve Matter 1 | . 1 . Retrieve Components 1 | . 1 . Scanalyzer . | . . . Garrison Access Hacks . | . . . Unauthorized Hacks . | . . . Terminals . | . . . Fabricators . | . . . Repair Stations . | . . . Recycling Units . | . . . Scanalyzers . | . . . Garrison Access . | . . . Data Cores Recovered . | . . . Used . | . . . Hacking Detections 6 | . 6 . Full Trace Events 5 | . 5 . Feedback Events . | . . . Feedback Blocked . | . . . Robot Schematics Acquired . | . . . Robots Built . | . . . Authchips . | . . . Time . | . . . Total Robot Build Rating . | . . . Part Schematics Acquired . | . . . Parts Built . | . . . Authchips . | . . . Time . | . . . Total Part Build Rating . | . . . Parts Repaired . | . . . Time . | . . . Parts Recycled . | . . . Recycled Matter . | . . . Retrieved Matter . | . . . Retrieved Components 1 | . 1 . Parts Scanalyzed . | . . . Part Schematics Acquired . | . . . Parts Damaged . | . . . Bothacking | -11 -10 -10 ------------ Run | Yrd Mat Sub Used RIF Installer . | . . . Robots Hacked . | . . . Non-combat . | . . . Combat . | . . . Robot Hacks Applied . | . . . Relay Couplers Released . | . . . Fabnet Peak Effective % . | . . . Robots Rewired . | . . . Allies Hacked . | . . . Hacks Repelled . | . . . Allies | -11 -10 -10 -------- Run | Yrd Mat Sub Total Allies . | . . . Largest Group . | . . . Highest-Rated Group . | . . . Highest-Rated Ally . | . . . Total Orders . | . . . Ally Attacks . | . . . Total Damage . | . . . Kills . | . . . Allies Corrupted . | . . . Allies Melted . | . . . Intel | -11 -10 -10 ------- Run | Yrd Mat Sub Robot Analysis Total . | . . . Derelict Logs Recovered 1 | . . 1 Drone Launches . | . . . Drone Recoveries . | . . . Exploration | -11 -10 -10 ------------- Run | Yrd Mat Sub Turns Passed 2012 | 138 862 1012 Spaces Moved 1924 | 76 877 971 Core 32 | 19 4 9 Treads 226 | 57 169 . Legs . | . . . Wheels 543 | . . 543 Hover 1123 | . 704 419 Flight . | . . . Fastest Speed 50 | 50 56 56 Average Speed 83 | 132 76 84 Slowest Speed 250 | 160 250 200 Overloaded Moves . | . . . Propulsion Burnouts . | . . . Robots Hopped . | . . . Cave-ins Triggered . | . . . Exploration Rate (%) 56 | 6 99 64 Regions Visited 2 Branch Regions 1 Pre-discovered Areas 2 | . . 2 Known Exits Taken 1 | . 1 . Unknown Exits Taken 1 | 1 . . Scrap Searched 5 | . . 5 Spaces Dug . | . . . Terrain Destroyed 31 | . 31 . Melee . | . . . Projectile . | . . . AOE 31 | . 31 . Terrain Rammed . | . . . Walls Destroyed . | . . . Machines Disabled . | . . . Actions | -11 -10 -10 --------- Run | Yrd Mat Sub Total 2161 | 99 989 1073 Wait 31 | . 23 8 Move 1922 | 75 876 971 Hop . | . . . Pick Up 26 | 8 13 5 Fast Attach 21 | 1 6 14 Attach 15 | 6 5 4 Detach 2 | . 1 1 Swap 6 | . 5 1 Drop 26 | . 9 17 Fire 111 | 9 50 52 Melee . | . . . Ram 1 | . 1 . Kick . | . . . Crush . | . . . Escape Stasis . | . . . Rewire . | . . . Trap . | . . . Miscellaneous . | . . . Route ------- -11/Scrapyard -10/Materials (discovered 6 exits: *Mat x3 / *Min x2 / *Sub) -10/Subcaves (discovered 1 exit: *Mat) History --------- Turn | Location | Event 12 | -11/Scrapyard | Discovered new exit (range 14) 139 | -11/Scrapyard | Entered Materials 311 | -10/Materials | Build established: Mutant 526 | -10/Materials | Discovered new exit (range 13) 658 | -10/Materials | Identified exit to Materials 706 | -10/Materials | Discovered exit to Materials (range 13) 798 | -10/Materials | Discovered new exit (range 8) 810 | -10/Materials | Identified exit to Mines 819 | -10/Materials | Discovered exit to Mines (range 5) 996 | -10/Materials | Discovered new exit (range 9) 1000 | -10/Materials | Identified exit to Subcaves 1001 | -10/Materials | Entered Subcaves 1108 | -10/Subcaves | Discovered new exit (range 15) 1114 | -10/Subcaves | Identified exit to Materials 1173 | -10/Subcaves | Core integrity fell below 50% 1199 | -10/Subcaves | Shifting Twisted Machinery released Mak. Hacking Suite 1205 | -10/Subcaves | Shifting Twisted Machinery released Mak. Leg 1376 | -10/Subcaves | Lost 3 parts (2n1u) 1677 | -10/Subcaves | Build established: Scavenger-Mutant 1679 | -10/Subcaves | Learned location of Zion (-7) 1750 | -10/Subcaves | Met a Zionite searching for "candidates" 1931 | -10/Subcaves | Core integrity fell below 20% 2013 | -10/Subcaves | Destroyed by OX-XE7(R) with Subdweller Laser Last Messages --------------- repair. 01950_ Dropped Flight Unit. 01952_ Acquired Wheel. 01954_ Subatomizers dissect the Disposable Heat Sink. 01955_ Acquired Wheel. 01956_ Acquired 2 matter. 01957_ Acquired 22 matter. 01973_ Particle Gun destroyed. 01977_ Subatomizers dissect the Sub. Optics. 01980_ Acquired Sub. Laser. 01990_ OX-XE7(R) affixes Scrap Shield Fragment to Scrap Shield. 01991_ Ion Engine destroyed. 01992_ Wheel destroyed. 01997_ HN-GA5(R) destroyed. 01997_ Sub. Laser destroyed. 02004_ OX-XE7(R) affixes Scrap Shield Fragment to Scrap Shield. 02007_ Wheel destroyed. Map ----- +----------------------------------------------------+ | ?????????????????????????????????????????????????? | | ?????????????????????????????????????????????????? | | ?????????????????????????????????????????????????? | | ?????????????????????????????????????????????????? | | ?????????????????????????????????????????????????? | | ?????????????????????????????????????????????????? | | ?????????????????????????????????????????????????? | | ???????????????????????????? ???? ??????????????? | | ?????????????????????????? ???? ????????????? | | ????????????????????????## ???? #??????????? | | ??????????????????????? ???# ##?????????? | | ???????????????????????? ### ??????????? | | ????????????????????????# % ??????????? | | ???????????????????????## % %???????????? | | ???????????????????????? ????????????? | | ????????????????????????? #?#####??????? | | ??????????????????????????# % #?# #??????? | | ???????????????????????????# ??## ####????? | | ????????????????????????????# #????# # ###??? | | ???????????????????????????## #???## # #??? | | ???????????????????????????# ##??# ###?? | | ????????????????????????????# #??## #?? | | ???????????????????????????## #### #?? | | ???????????????????######### ### ## #?? | | ???????????????????# # ## #?## ###### #?? | | ????????????????????# *R@! #??###????# ##? | | ???????????????????## =%" =#?????????# #? | | ?????????????????### ####" #?????????## #? | | ?????????????????#% #?#% & #??????????# #? | | ?????????????????# %"####" ""&!&????????### ##? | | ?????????????????## ##??# # %[%![ ????????## ##? | | ?????????????????# ##??#"%##""!% ???????## #? | | ?????#####?######## #??# "###### "?????#=* #? | | ??#### ### # ## # ""????? "#????## ## | | ### % "" ""??????%% ""#????#% # | | # # # # #"### ###""??????#########?# # | | ##############?###?????????????## ### # | | # #??????????????????????????????# % ### | | # ##??????????????????????????????# #?? | | # ##?????????????????????????????## # ## #?? | | ## ##????????????????????????????# ###% ##?? | | ?## #????????????????????????????# ##?# #??? | | ??# ##????????????????????????????# ### #??? | | ??# #?????????????????????#####???# # ##?? | | ?## ##?????????????????????# #### % #?? | | ## #####?#######?######???# % ##? | | # ## ### ## %###% # #???## ## | | ## ##????## # | | % #?????## # | | # ##### #### ##??????## ! ## | +----------------------------------------------------+ Best States ------------- Heat Dissipation 39 Energy Generation 15 Energy Capacity 500 Matter Stores 300 Matter Capacity 300 Sight Range 21 Terrain Scan Range 16 Terrain Scan Density 10 Armor Coverage 150 Evasion (%) 53 Recoil Reduction 2 Item Schematics ----------------- None Robot Schematics ------------------ None Fabricated ------------ Nothing Alien Tech Used ----------------- None Achievements -------------- None Challenges ------------ None Game ------ Seed MultinovaAblativeMonowheel Manual? 0 Play Time 00:26:55 Cumulative 12.0 hours Start 2024.05.27 @ 22:24:28 End 2024.05.27 @ 22:49:22 Sessions 1 Manual Loads 0 Difficulty Rogue Special Mode None Game No. 14 Rogue 2 Adventurer 12 Explorer 0 Win Type - Total 0 Types 0/0/0/0/0/0/0/0/0 Lore% 17 Gallery% 19 Achievement% 15 Wizard Run 0 Options --------- Layout 1 ASCII 0 Keyboard 0 Movement Mouse Keybinds 0 Fullscreen 2 Font 24/Smallcaps Map View 50x35 Zoom Use 0% Tactical HUD 1 Map Filters NONE Filters NONE Steam 1 RUN: 7fe02161-f978-4153-9cf3-c35ed92c6ed5